bitfinex-derivatives/quotes_SOLF0:USTF0_20240913
["timestamp","ask_amount","ask_price","bid_price","bid_amount"]
[1726188605886,13.4834,136.22,136.17,13.4844]
[1726188606597,3.3034,136.22,136.17,13.4844]
[1726188606779,13.4834,136.22,136.17,13.4844]
[1726188608397,10.18,136.22,136.18,3.3042]
[1726188608893,10.18,136.22,136.11,8.7343]
[1726188609083,3.64842027,136.23,136.17,10.18]
[1726188609289,10.18,136.22,136.17,10.18]
[1726188610395,10.18,136.22,136.11,8.7343]
[1726188610583,10.18,136.22,136.17,10.18]
[1726188611384,13.4834,136.22,136.17,13.4844]
[1726188611695,10.18,136.2,136.11,8.7343]
[1726188611887,13.4838,136.2,136.15,13.4848]
[1726188613599,13.4838,136.2,136.16,3.3047]
[1726188614089,13.4838,136.2,136.15,13.4848]
[1726188614289,13.4838,136.2,136.15,10.18]
[1726188615791,13.4838,136.2,136.16,3.3047]
[1726188618091,3.3042,136.19,136.11,8.7343]
[1726188618299,3.3042,136.19,136.15,10.18]
[1726188618907,3.3042,136.19,136.15,13.4848]
[1726188619502,3.3042,136.19,136.16,3.3047]
[1726188625000,3.63413045,136.23,136.16,10.18]
[1726188625299,10.18,136.22,136.17,10.18]
[1726188625494,3.64137221,136.21,136.18,3.3041]
[1726188626000,10.18,136.25,136.2,10.18]
[1726188626205,13.93560126,136.25,136.2,13.4837]
[1726188626898,10.18,136.27,136.21,10.18]
[1726188627210,13.84451186,136.27,136.21,10.18]
[1726188627890,17.14671186,136.27,136.22,3.3031]
[1726188628300,17.14671186,136.27,136.21,10.18]
[1726188628301,10.18,136.26,136.21,10.18]
[1726188628602,13.4824,136.26,136.21,13.4834]
[1726188628993,17.07239779,136.26,136.21,13.4834]
[1726188629803,10.18,136.24,136.2,3.3036]
[1726188630010,10.18,136.23,136.18,10.18]
[1726188630599,10.18,136.23,136.19,3.3038]
[1726188632995,13.4831,136.23,136.19,3.3038]
[1726188637205,3.3033,136.22,136.18,3.3041]
[1726188637712,3.3035,136.21,136.17,3.3044]
[1726188639004,10.18,136.24,136.19,10.18]
[1726188639203,13.77456481,136.24,136.19,10.18]
[1726188639904,3.3032,136.23,136.19,13.4838]
[1726188641904,3.3032,136.23,136.16,2.7556]
[1726188642111,13.4833,136.22,136.18,3.3042]
[1726188642510,10.18,136.22,136.18,3.3042]
[1726188645013,13.4833,136.22,136.18,3.3042]
[1726188647312,13.4836,136.21,136.17,3.3044]
[1726188650511,10.18,136.21,136.18,3.3042]
[1726188654022,13.4836,136.21,136.17,3.3044]
[1726188655818,10.18,136.2,136.17,3.3044]
[1726188660933,13.4838,136.2,136.16,6.0601]
[1726188661636,13.4838,136.2,136.16,2.7556]
[1726188662923,13.4838,136.2,136.17,3.3045]
[1726188664034,3.3041,136.19,136.16,3.3046]
[1726188665132,13.4841,136.19,136.13,167.24627853]
[1726188665337,10.18,136.16,136.13,4.6983]
[1726188665635,2.5045,136.23,136.13,1.393]
[1726188665844,10.18,136.17,136.13,1.393]
[1726188666439,10.18,136.18,136.14,10.18]
[1726188666827,10.18,136.18,136.15,3.3049]
[1726188667031,10.18,136.16,136.13,1.393]
[1726188667334,10.18,136.16,136.13,4.6983]
[1726188668238,13.4848,136.16,136.13,1.393]
[1726188668435,10.18,136.16,136.13,1.393]
[1726188668640,10.18,136.16,136.13,4.6984]
[1726188669435,10.18,136.15,136.09,10.04842071]
[1726188669636,10.18,136.14,136.1,6.28161394]
[1726188669831,10.18,136.14,136.08,2.7362]
[1726188670136,13.4853,136.14,136.09,3.3063]
[1726188670325,17.11184794,136.14,136.1,6.28237455]
[1726188670524,17.11184794,136.14,136.09,3.3063]
[1726188670525,10.18,136.13,136.09,3.3063]
[1726188670728,10.18,136.12,136.08,1.4216]
[1726188671331,13.486,136.11,136.07,2.94229639]
[1726188671534,2.5045,136.23,136.07,2.94229639]
[1726188671740,10.18,136.12,136.07,13.12229639]
[1726188671935,10.18,136.12,136.08,3.3066]
[1726188672743,10.18,136.1,136.07,6.24919639]
[1726188672946,10.18,136.09,136.07,2.94229639]
[1726188673844,10.18,136.08,136.07,2.94229639]
[1726188679246,13.4867,136.08,136.07,2.94229639]
[1726188680451,3.3069,136.07,136.06,3.12736002]
[1726188680753,13.4869,136.07,136.06,3.12736002]
[1726188681046,13.4869,136.07,136.04,3.47511146]
[1726188681047,3.3074,136.05,136.04,3.47511146]
[1726188681270,13.4874,136.05,136.04,3.47511146]
[1726188682138,10.18,136.05,136.03,3.62397785]
[1726188682338,10.18,136.04,136.02,6.27057226]
[1726188682540,10.18,136.03,136.02,6.27057226]
[1726188683449,13.4879,136.03,136.02,6.27057226]
[1726188683651,10.18,136.03,136.02,6.27057226]
[1726188687841,13.4879,136.03,136.02,6.27057226]
[1726188688543,3.3081,136.02,136.0,6.1907221]
[1726188688766,13.4881,136.02,136.0,6.1907221]
[1726188689955,3.3084,136.01,136.0,6.1907221]
[1726188690152,13.4884,136.01,136.0,6.1907221]
[1726188694357,13.4884,136.01,135.98,5.69809197]
[1726188694660,10.18,135.99,135.98,5.69809197]
[1726188694853,3.3084,136.01,135.98,5.69809197]
[1726188695060,10.18,135.99,135.98,5.69809197]
[1726188699761,13.4889,135.99,135.98,5.69809197]
[1726188700159,10.18,135.99,135.96,4.31794121]
[1726188700361,10.18,135.97,135.96,4.31794121]
[1726188701159,17.20214233,135.97,135.96,4.31794121]
[1726188701359,13.89284233,135.97,135.96,4.31794121]
[1726188703671,3.71284233,135.97,135.96,4.31794121]
[1726188703860,13.89284233,135.97,135.96,4.31794121]
[1726188704365,13.89284233,135.97,135.94,4.03525194]
[1726188704567,10.18,135.95,135.94,4.03525194]
[1726188705969,10.18,135.95,135.94,7.34535194]
[1726188708872,10.18,135.95,135.94,4.03525194]
[1726188720180,10.18,135.95,135.93,7.13371454]
[1726188720386,10.18,135.94,135.93,7.13371454]
[1726188720683,10.18,135.94,135.92,13.78530234]
[1726188720864,10.18,135.93,135.92,13.78530234]
[1726188723079,10.18,135.93,135.92,17.09590234]
[1726188723282,10.18,135.93,135.92,13.78530234]
[1726188723582,10.18,135.93,135.91,11.28912622]
[1726188723772,10.18,135.92,135.91,11.28912622]
[1726188724781,10.18,135.92,135.91,14.59992622]
[1726188727574,10.18,135.93,135.91,11.28912622]
[1726188727981,8.0431,135.93,135.92,3.3104]
[1726188732385,8.0431,135.93,135.91,9.98512622]
[1726188732585,10.18,135.92,135.91,9.98512622]
[1726188738187,10.18,135.92,135.91,8.57222622]
[1726188738393,10.18,135.92,135.9,8.25392766]
[1726188738577,10.18,135.91,135.9,8.25392766]
[1726188741301,10.18,135.91,135.9,11.56492766]
[1726188743999,10.18,135.91,135.9,8.25392766]
[1726188744192,10.18,135.91,135.88,24.07422183]
[1726188744392,10.18,135.89,135.88,24.07422183]
[1726188744899,10.18,135.89,135.87,16.18376483]
[1726188745088,10.18,135.88,135.87,14.76216483]
[1726188745284,13.87451601,135.88,135.86,11.63666386]
[1726188745502,10.18,135.87,135.86,11.63666386]
[1726188746702,10.18,135.87,135.85,0.04543059]
[1726188747005,3.6514538,135.89,135.85,0.04543059]
[1726188747006,10.18,135.86,135.85,0.04543059]
[1726188747204,10.18,135.86,135.84,13.93957359]
[1726188747403,10.18,135.85,135.84,13.93957359]
[1726188748891,10.18,135.85,135.81,14.1889464]
[1726188749101,3.6514538,135.89,135.81,14.1889464]
[1726188749102,10.18,135.83,135.81,14.1889464]
[1726188749307,2.6529,135.88,135.81,14.1889464]
[1726188749308,10.18,135.82,135.81,14.1889464]
[1726188752117,10.18,135.82,135.78,3.314]
[1726188752310,10.18,135.81,135.78,3.314]
[1726188753004,10.18,135.81,135.77,1.4041]
[1726188753208,2.6529,135.88,135.77,1.4041]
[1726188753398,10.18,135.81,135.8,12.56444449]
[1726188753905,10.18,135.81,135.8,9.25114449]
[1726188754510,6.91930574,135.85,135.8,12.56444449]
[1726188754712,10.18,135.81,135.8,12.56444449]
[1726188754896,2.6529,135.88,135.8,12.56444449]
[1726188755102,10.18,135.82,135.81,3.3131]
[1726188755304,10.18,135.83,135.8,9.25114449]
[1726188755612,10.18,135.82,135.8,9.25114449]
[1726188755812,10.18,135.82,135.81,3.3131]
[1726188756215,10.18,135.83,135.8,9.25114449]
[1726188756415,10.18,135.83,135.82,3.3128]
[1726188756602,10.18,135.83,135.8,19.43114449]
[1726188756603,10.18,135.84,135.8,26.77714449]
[1726188757108,10.18,135.84,135.83,3.3127]
[1726188757514,10.18,135.85,135.82,1.4204]
[1726188757704,10.18,135.85,135.83,3.3127]
[1726188758021,10.18,135.85,135.82,1.4204]
[1726188758618,10.18,135.85,135.83,3.3125]
[1726188759712,10.18,135.85,135.82,1.4204]
[1726188759918,10.18,135.85,135.84,3.3125]
[1726188768716,10.18,135.87,135.86,3.3119]
[1726188770229,10.18,135.88,135.87,3.3116]
[1726188775727,3.3106,135.92,135.88,3.3114]
[1726188775728,10.18,135.89,135.88,3.3114]
[1726188777129,10.18,135.89,135.87,3.3118]
[1726188777334,10.18,135.88,135.87,3.3118]
[1726188777526,10.18,135.88,135.82,13.0204]
[1726188778326,10.18,135.88,135.86,3.3119]
[1726188782825,2.7726,135.95,135.87,3.3118]
[1726188783030,10.18,135.89,135.84,10.18]
[1726188783536,10.18,135.89,135.87,3.3116]
[1726188783926,10.18,135.89,135.82,2.8404]
[1726188784238,10.18,135.89,135.84,10.18]
[1726188784842,10.18,135.89,135.86,3.3118]
[1726188785026,10.18,135.89,135.84,10.18]
[1726188785332,10.18,135.89,135.87,3.3116]
[1726188785532,10.18,135.89,135.84,10.18]
[1726188785936,10.18,135.89,135.87,3.3116]
[1726188786625,10.18,135.89,135.86,3.312]
[1726188788739,10.18,135.89,135.87,3.3117]
[1726188788937,10.18,135.88,135.82,2.8404]
[1726188789237,10.18,135.88,135.83,10.18]
[1726188789842,10.18,135.88,135.86,3.312]
[1726188792945,10.18,135.88,135.85,3.3122]
[1726188793128,10.18,135.88,135.83,10.18]
[1726188793533,10.18,135.88,135.86,3.3119]
[1726188800835,2.7726,135.95,135.82,2.8404]
[1726188801039,10.18,135.91,135.87,10.18]
[1726188801445,2.7726,135.95,135.87,10.18]
[1726188801750,10.18,135.92,135.87,10.18]
[1726188801945,10.18,135.92,135.89,3.3111]
[1726188802545,10.18,135.92,135.88,10.18]
[1726188802750,2.7726,135.95,135.91,3.3108]
[1726188802946,10.18,135.94,135.91,3.3108]
[1726188803742,10.18,135.93,135.9,3.311]
[1726188804045,10.18,135.91,135.86,10.18]
[1726188804244,10.18,135.9,135.86,10.18]
[1726188804648,10.18,135.91,135.86,10.18]
[1726188805449,10.18,135.91,135.87,10.18]
[1726188806355,10.18,135.91,135.88,3.3115]
[1726188807045,10.18,135.91,135.89,3.3112]
[1726188807560,2.7726,135.95,135.83,10.6585]
[1726188807561,3.3119,135.87,135.83,10.6585]
[1726188807741,10.18,135.86,135.82,1.4204]
[1726188808151,10.18,135.86,135.84,3.3123]
[1726188808850,10.18,135.86,135.83,3.3126]
[1726188809861,13.4921,135.86,135.83,3.3126]
[1726188810157,13.4921,135.86,135.82,4.7333]
[1726188810354,13.4921,135.86,135.82,1.4204]
[1726188811260,10.18,135.86,135.83,3.3127]
[1726188812751,13.492,135.86,135.83,3.3127]
[1726188812953,3.312,135.86,135.82,4.7333]
[1726188813142,10.18,135.85,135.82,4.7333]
[1726188814456,10.18,135.85,135.8,19.43114449]
[1726188814457,13.4925,135.85,135.8,19.43114449]
[1726188814659,10.18,135.83,135.81,3.3132]
[1726188814867,10.18,135.83,135.8,19.43114449]
[1726188815744,10.18,135.83,135.82,3.313]
[1726188815949,13.4925,135.85,135.82,3.313]
[1726188816547,10.18,135.85,135.83,3.3127]
[1726188819954,10.18,135.84,135.8,9.25114449]
[1726188820553,10.18,135.84,135.81,3.3131]
[1726188822460,10.18,135.84,135.82,3.313]
[1726188824063,10.18,135.84,135.81,3.3131]
[1726188824958,10.18,135.84,135.82,3.313]
[1726188830766,10.18,135.84,135.83,3.3127]
[1726188840273,10.18,135.85,135.83,3.3127]
[1726188840474,10.18,135.84,135.83,3.3127]
[1726188851889,10.18,135.84,135.82,3.3129]
[1726188852892,3.3121,135.86,135.8,9.25114449]
[1726188853093,10.18,135.83,135.8,9.25114449]
[1726188853488,10.18,135.83,135.82,3.313]
[1726188865091,10.18,135.83,135.81,3.3132]
[1726188865285,3.59784328,135.87,135.81,3.3132]
[1726188865286,10.18,135.82,135.81,3.3132]
[1726188865491,10.18,135.82,135.8,9.25114449]
[1726188865808,10.18,135.82,135.8,12.56454449]
[1726188866194,10.18,135.81,135.8,9.25114449]
[1726188866997,3.59784328,135.87,135.8,12.56464449]
[1726188867192,10.18,135.81,135.8,12.56464449]
[1726188867596,10.18,135.81,135.8,9.25114449]
[1726188868288,13.4932,135.81,135.8,9.25114449]
[1726188869002,10.18,135.81,135.8,9.25114449]
[1726188869901,13.4932,135.81,135.8,9.25114449]
[1726188876012,3.3136,135.8,135.76,3.3144]
[1726188876209,10.18,135.77,135.76,3.3144]
[1726188877301,10.18,135.77,135.75,3.3146]
[1726188877509,10.18,135.76,135.75,3.3146]
[1726188877699,3.3136,135.8,135.76,3.3144]
[1726188878016,10.18,135.77,135.76,3.3144]
[1726188885106,2.6443,135.83,135.79,3.3137]
[1726188885107,3.3131,135.82,135.79,3.3137]
[1726188885426,10.18,135.83,135.79,10.18]
[1726188885818,10.18,135.83,135.81,3.3132]
[1726188887624,10.18,135.82,135.81,3.3132]
[1726188889928,10.18,135.82,135.79,3.3137]
[1726188890527,10.18,135.82,135.8,3.3134]
[1726188890728,10.18,135.81,135.78,1.3366]
[1726188891023,10.18,135.81,135.8,3.3135]
[1726188893930,10.18,135.81,135.76,1.3943]
[1726188894134,10.18,135.79,135.76,1.3943]
[1726188895626,10.18,135.79,135.78,3.3138]
[1726188895828,10.18,135.79,135.75,11.5308]
[1726188896036,10.18,135.78,135.75,1.3508]
[1726188896237,10.18,135.78,135.77,3.3141]
[1726188897334,2.8373,135.84,135.78,3.3139]
[1726188897534,10.18,135.79,135.78,3.3139]
[1726188899727,13.4937,135.79,135.76,3.3144]
[1726188899929,10.18,135.77,135.76,3.3144]
[1726188901523,13.4942,135.77,135.74,3.3148]
[1726188901821,10.18,135.75,135.72,2.66361354]
[1726188902231,10.18,135.75,135.73,3.3151]
[1726188904021,10.18,135.75,135.74,3.3149]
[1726188904227,10.18,135.76,135.74,3.3149]
[1726188905131,10.18,135.76,135.75,3.3147]
[1726188905538,10.18,135.76,135.72,2.66361354]
[1726188905738,10.18,135.74,135.73,3.3152]
[1726188907539,10.18,135.77,135.72,12.84361354]
[1726188907930,10.18,135.77,135.75,3.3145]
[1726188908933,10.18,135.77,135.74,3.3148]
[1726188909139,13.4942,135.77,135.74,3.3148]
[1726188909447,10.18,135.76,135.74,3.3148]
[1726188909941,10.18,135.76,135.73,3.3151]
[1726188910135,10.18,135.74,135.73,3.3151]
[1726188910530,10.18,135.74,135.72,2.66361354]
[1726188910531,13.495,135.74,135.72,2.66361354]
[1726188910730,10.18,135.73,135.72,2.66361354]
[1726188910934,10.18,135.74,135.72,2.66361354]
[1726188911132,10.18,135.74,135.72,5.97891354]
[1726188912032,10.18,135.73,135.72,2.66361354]
[1726188913444,10.18,135.73,135.72,5.97901354]
[1726188913834,10.18,135.73,135.72,2.66361354]
[1726188916647,13.4952,135.73,135.72,2.66361354]
[1726188916847,10.18,135.73,135.72,2.66361354]
[1726188918051,13.4952,135.73,135.71,2.90294245]
[1726188918240,10.18,135.72,135.71,2.90294245]
[1726188921737,10.18,135.72,135.7,2.89138156]
[1726188921939,10.18,135.71,135.7,2.89138156]
[1726188922751,13.4957,135.71,135.7,2.89138156]
[1726188923948,10.18,135.71,135.7,2.89138156]
[1726188924537,13.94482805,135.71,135.7,2.89138156]
[1726188924734,17.26052805,135.71,135.7,2.89138156]
[1726188926157,3.3159,135.7,135.69,4.16723149]
[1726188926345,13.4959,135.7,135.69,4.16723149]
[1726188928649,10.18,135.7,135.69,4.16723149]
[1726188929847,13.4959,135.7,135.69,4.16723149]
[1726188930063,13.4959,135.7,135.69,2.02883149]
[1726188931054,10.18,135.7,135.69,2.02883149]
[1726188931551,13.4959,135.7,135.69,2.02883149]
[1726188932761,3.3162,135.69,135.68,2.35538685]
[1726188933358,13.4962,135.69,135.68,2.35538685]
[1726188934457,13.4962,135.69,135.67,2.8153974]
[1726188934762,10.18,135.68,135.67,2.8153974]
[1726188938863,13.4964,135.68,135.67,2.8153974]
[1726188939069,10.18,135.68,135.67,2.8153974]
[1726188942863,10.18,135.68,135.67,6.1320974]
[1726188943563,10.18,135.68,135.67,2.8153974]
[1726188945863,13.4964,135.68,135.67,2.8153974]
[1726188949169,13.4964,135.68,135.66,1.8985421]
[1726188949376,10.18,135.67,135.66,1.8985421]
[1726188949768,13.4967,135.67,135.66,1.8985421]
[1726188950374,10.18,135.67,135.66,1.8985421]
[1726188955181,13.4967,135.67,135.65,3.89989715]
[1726188955473,10.18,135.66,135.65,3.89989715]
[1726188958179,10.18,135.66,135.63,2.18862017]
[1726188958481,10.18,135.64,135.62,6.89652828]
[1726188958780,10.18,135.63,135.62,6.89652828]
[1726188960272,10.18,135.63,135.6,7.51985704]
[1726188960273,10.18,135.63,135.6,4.20165704]
[1726188960583,10.18,135.61,135.6,4.20165704]
[1726188963677,10.18,135.6,135.59,3.02885441]
[1726188967882,10.18,135.6,135.58,7.91362687]
[1726188968085,10.18,135.59,135.57,4.81072712]
[1726188968390,10.18,135.58,135.57,4.81072712]
[1726188970280,10.18,135.58,135.55,14.48452118]
[1726188970281,10.18,135.58,135.55,4.71402119]
[1726188970481,10.18,135.56,135.52,10.09622716]
[1726188970780,3.66319828,135.58,135.52,10.09622716]
[1726188971088,10.18,135.54,135.52,11.41542716]
[1726188971275,3.66061545,135.58,135.53,14.19262996]
[1726188971473,10.18,135.54,135.53,14.19262996]
[1726188971691,3.67721939,135.58,135.53,14.19262996]
[1726188971893,10.18,135.55,135.53,14.19262996]
[1726188972189,10.18,135.54,135.53,14.19262996]
[1726188972381,1.292,135.66,135.53,14.19262996]
[1726188972584,10.18,135.56,135.53,14.19262996]
[1726188972793,10.18,135.56,135.53,17.51272996]
[1726188972985,3.64290458,135.59,135.53,17.51272996]
[1726188973185,10.18,135.56,135.53,17.51272996]
[1726188973895,3.64290458,135.59,135.54,3.3198]
[1726188974196,10.18,135.57,135.54,3.3198]
[1726188976986,7.01390239,135.59,135.54,3.3198]
[1726188977187,10.18,135.57,135.54,3.3198]
[1726188977391,1.292,135.66,135.54,3.3198]
[1726188977392,1.292,135.66,135.54,10.18]
[1726188977690,10.18,135.59,135.54,10.18]
[1726188978105,10.18,135.59,135.56,3.3193]
[1726188980695,10.18,135.61,135.56,10.18]
[1726188981001,1.292,135.66,135.57,1.3012]
[1726188981192,10.18,135.62,135.6,3.3183]
[1726188982405,1.292,135.66,135.61,3.3181]
[1726188982599,10.18,135.63,135.61,3.3181]
[1726188984018,10.18,135.62,135.59,3.3185]
[1726188985298,10.18,135.62,135.6,3.3184]
[1726188987211,10.18,135.62,135.59,3.3185]
[1726188988305,10.18,135.61,135.58,4.6915]
[1726188989703,13.4982,135.61,135.58,4.6915]
[1726188989908,10.18,135.59,135.53,14.22922996]
[1726188990211,10.18,135.59,135.54,11.4768]
[1726188991100,10.18,135.59,135.58,3.3189]
[1726188991301,10.18,135.59,135.54,11.4768]
[1726188992304,10.18,135.59,135.57,3.3189]
[1726188992811,10.18,135.59,135.54,11.4768]
[1726188993216,10.18,135.58,135.57,3.3191]
[1726188995014,10.18,135.58,135.56,3.3193]
[1726188995605,10.18,135.58,135.54,11.4768]
[1726188995606,10.18,135.57,135.54,1.2968]
[1726188995811,10.18,135.56,135.54,1.2968]
[1726188996019,10.18,135.56,135.55,3.3196]
[1726188996223,10.18,135.57,135.54,1.2968]
[1726188996712,3.3182,135.61,135.54,1.2968]
[1726188996896,10.18,135.58,135.54,11.4768]
[1726188997499,10.18,135.58,135.57,3.3189]
[1726188998114,10.18,135.58,135.56,3.3193]
[1726188998322,10.18,135.57,135.56,3.3193]
[1726188998611,10.18,135.58,135.56,3.3193]
[1726188999014,10.18,135.58,135.55,3.3196]
[1726188999911,10.18,135.56,135.53,16.18262996]
[1726189000217,10.18,135.56,135.53,12.86262996]
[1726189000806,10.18,135.56,135.54,3.3197]
[1726189001004,3.3189,135.58,135.53,12.86262996]
[1726189001206,10.18,135.57,135.53,12.86262996]
[1726189001414,10.18,135.57,135.55,3.3194]
[1726189001817,10.18,135.58,135.55,3.3194]
[1726189002213,10.18,135.58,135.53,23.04262996]
[1726189002418,10.18,135.58,135.55,3.3194]
[1726189002822,10.18,135.58,135.53,23.04262996]
[1726189003030,10.18,135.58,135.56,3.3192]
[1726189004040,10.18,135.58,135.57,3.3191]
[1726189004726,5.07494106,135.63,135.57,3.3191]
[1726189004727,10.18,135.59,135.57,3.3191]
[1726189005116,10.18,135.59,135.56,3.3192]
[1726189005434,10.18,135.58,135.56,3.3192]
[1726189006422,10.18,135.58,135.55,3.3195]
[1726189008127,10.18,135.57,135.55,3.3195]
[1726189008517,10.18,135.58,135.56,3.3192]
[1726189009324,10.18,135.58,135.55,3.3195]
[1726189009526,10.18,135.57,135.53,12.86262996]
[1726189009824,10.18,135.58,135.53,23.04262996]
[1726189010330,10.18,135.58,135.55,3.3194]
[1726189011130,10.18,135.58,135.56,3.3193]
[1726189014532,5.07494106,135.63,135.56,10.18]
[1726189014832,1.372,135.64,135.59,10.18]
[1726189015133,10.18,135.64,135.62,3.3179]
[1726189018934,10.18,135.63,135.61,3.3181]
[1726189020236,10.18,135.63,135.62,3.3179]
[1726189020931,10.18,135.63,135.61,3.3181]
[1726189022037,10.18,135.64,135.6,10.18]
[1726189022245,10.18,135.66,135.63,3.3176]
[1726189022446,3.3167,135.67,135.63,3.3176]
[1726189022447,17.24015356,135.67,135.63,3.3176]
[1726189022641,13.4967,135.67,135.62,10.18]
[1726189022827,3.3167,135.67,135.62,10.18]
[1726189023032,10.18,135.66,135.63,3.3176]
[1726189025225,3.3163,135.69,135.65,3.317]
[1726189025626,10.18,135.67,135.62,10.18]
[1726189026238,10.18,135.67,135.64,3.3172]
[1726189026834,10.18,135.67,135.58,1.3]
[1726189026835,10.18,135.65,135.6,10.18]
[1726189027141,10.18,135.63,135.59,10.18]
[1726189028336,10.18,135.63,135.58,1.3]
[1726189028337,10.18,135.65,135.62,3.3179]
[1726189028738,10.18,135.67,135.65,3.317]
[1726189029140,10.18,135.69,135.64,10.18]
[1726189029946,10.18,135.69,135.65,3.3171]
[1726189030649,1.3235,135.71,135.58,1.3]
[1726189030650,10.18,135.66,135.58,1.3]
[1726189030944,10.18,135.63,135.58,11.48]
[1726189031747,10.18,135.63,135.61,3.318]
[1726189032047,10.18,135.64,135.6,10.18]
[1726189032849,10.18,135.64,135.61,3.3181]
[1726189033365,10.18,135.66,135.63,3.3174]
[1726189033541,10.18,135.66,135.61,10.18]
[1726189033942,3.66627541,135.68,135.6,10.18]
[1726189034151,1.3235,135.71,135.6,10.18]
[1726189034152,10.18,135.65,135.6,10.18]
[1726189034452,10.18,135.65,135.61,10.18]
[1726189034957,10.18,135.66,135.63,3.3176]
[1726189035547,10.18,135.66,135.62,3.3178]
[1726189036352,10.18,135.66,135.61,13.498]
[1726189036556,10.18,135.65,135.61,3.318]
[1726189037445,10.18,135.65,135.6,13.4983]
[1726189037753,10.18,135.63,135.58,11.48]
[1726189038348,10.18,135.63,135.6,3.3182]
[1726189038550,10.18,135.63,135.58,11.48]
[1726189039152,10.18,135.62,135.58,1.3]
[1726189039562,10.18,135.62,135.58,4.6188]
[1726189039746,10.18,135.61,135.58,4.6188]
[1726189040460,10.18,135.61,135.58,1.3]
[1726189041050,10.18,135.61,135.58,4.6188]
[1726189041446,1.2886,135.65,135.56,3.3192]
[1726189041447,10.18,135.6,135.56,3.3192]
[1726189041751,10.18,135.58,135.56,3.3192]
[1726189042149,15.95,135.6,135.56,3.3192]
[1726189042348,15.95,135.6,135.55,4.7247]
[1726189042551,15.95,135.6,135.55,3.3195]
[1726189042859,15.95,135.6,135.56,3.3191]
[1726189043361,15.95,135.6,135.55,3.3195]
[1726189043948,15.95,135.6,135.53,12.86262996]
[1726189044248,15.95,135.6,135.53,14.28652996]
[1726189044571,15.95,135.6,135.55,3.3196]
[1726189044950,15.95,135.6,135.56,3.3193]
[1726189045353,15.95,135.62,135.53,30.23652996]
[1726189045750,15.95,135.62,135.57,3.319]
[1726189050769,17.2921,135.64,135.6,3.3182]
[1726189050957,1.2886,135.65,135.56,15.95]
[1726189050958,17.2386,135.65,135.56,15.95]
[1726189051355,15.95,135.63,135.58,3.3187]
[1726189051768,15.95,135.63,135.55,18.6301]
[1726189053356,17.2386,135.65,135.55,18.6301]
[1726189054259,17.2386,135.65,135.59,3.3186]
[1726189058076,15.95,135.63,135.59,3.3186]
[1726189058272,15.95,135.63,135.58,3.3187]
[1726189059976,15.95,135.63,135.57,3.319]
[1726189060372,15.95,135.63,135.59,3.3185]
[1726189060572,15.95,135.63,135.55,18.6301]
[1726189061474,15.95,135.63,135.59,3.3184]
[1726189062067,10.2,135.62,135.59,3.3184]
[1726189062479,10.2,135.62,135.57,10.2]
[1726189063373,10.2,135.62,135.6,3.3184]
[1726189068979,10.2,135.62,135.59,3.3185]
[1726189071476,10.2,135.61,135.59,3.3185]